bitfinex-derivatives/quotes_ETHF0:USTF0_20250308
["timestamp","ask_amount","ask_price","bid_price","bid_amount"]
[1741451950996,0.73409,2180.2,2180.0,3.2078]
[1741451951785,0.73407,2180.3,2180.0,3.2078]
[1741451951985,0.73399,2180.5,2180.1,1.80221]
[1741451952187,2.127,2180.4,2180.2,1.0745]
[1741451952707,2.861,2180.5,2180.3,3.2078]
[1741451953404,2.127,2180.5,2180.3,3.2078]
[1741451953701,0.73396,2180.6,2180.3,3.2078]
[1741451953994,2.86096,2180.6,2180.3,3.2078]
[1741451954396,0.734,2180.5,2180.3,3.2078]
[1741451954697,0.73411,2180.1,2180.0,3.2078]
[1741451954892,2.127,2180.2,2180.0,3.2078]
[1741451955097,2.127,2180.2,2180.0,3.58756448]
[1741451955802,2.127,2180.2,2180.1,0.73411]
[1741451955997,2.127,2180.2,2180.0,3.58756448]
[1741451956303,2.86109,2180.2,2180.0,3.58756448]
[1741451956898,2.127,2180.2,2180.0,3.58756448]
[1741451957104,2.127,2180.2,2180.0,4.32170448]
[1741451957397,2.127,2180.2,2180.0,3.58756448]
[1741451957799,2.86109,2180.2,2180.0,3.58756448]
[1741451958204,2.86109,2180.2,2180.0,3.2078]
[1741451958397,0.73411,2180.1,2180.0,3.2078]
[1741451958909,2.86109,2180.2,2180.0,3.58275868]
[1741451959203,2.127,2180.2,2180.0,3.58275868]
[1741451959599,2.127,2180.2,2180.0,4.31688868]
[1741451959798,0.75568873,2180.6,2180.0,3.58275868]
[1741451960002,2.127,2180.4,2180.3,3.2078]
[1741451960199,2.86098,2180.5,2180.3,4.2175]
[1741451960598,2.127,2180.5,2180.3,4.2175]
[1741451960997,2.86098,2180.5,2180.3,4.2175]
[1741451961301,2.86096,2180.6,2180.3,4.2175]
[1741451961498,0.73398,2180.5,2180.3,4.2175]
[1741451961699,2.86096,2180.6,2180.3,4.2175]
[1741451962203,2.12127932,2180.7,2180.4,0.73399]
[1741451962403,5.2509,2181.2,2180.6,3.2078]
[1741451962600,0.73389,2180.8,2180.6,3.2078]
[1741451962899,5.04202,2181.4,2180.6,3.2078]
[1741451963100,0.73386,2180.9,2180.7,1.0177]
[1741451963300,0.92018715,2181.3,2180.7,1.75161]
[1741451963495,2.86079,2181.1,2181.0,3.2078]
[1741451963700,2.8608,2181.1,2180.7,4.2255]
[1741451964102,2.127,2181.1,2180.7,4.95939]
[1741451964296,2.86078,2181.1,2180.7,4.95939]
[1741451964502,2.127,2181.1,2180.7,4.2255]
[1741451965709,0.73388,2180.8,2180.7,4.2255]
[1741451965896,2.127,2181.1,2180.4,3.2078]
[1741451965897,0.73396,2180.6,2180.4,3.2078]
[1741451966296,0.73398,2180.5,2180.4,3.2078]
[1741451967401,2.127,2180.7,2180.2,1.0076]
[1741451967807,1.0731,2180.6,2179.9,0.00689243]
[1741451968003,0.73413,2180.1,2179.9,0.00689243]
[1741451968701,2.127,2180.3,2179.9,0.00689243]
[1741451968907,0.73411,2180.1,2179.9,0.38694498]
[1741451969108,2.127,2180.3,2179.9,1.01769243]
[1741451969305,2.127,2180.3,2180.1,3.2078]
[1741451969799,2.86107,2180.3,2180.1,3.2078]
[1741451970004,0.73408,2180.2,2180.1,3.2078]
[1741451970405,2.127,2180.3,2180.1,3.2078]
[1741451970805,2.86106,2180.3,2180.1,3.2078]
[1741451971006,2.127,2180.3,2180.1,3.2078]
[1741451971206,0.73408,2180.2,2180.1,3.2078]
[1741451971407,0.73407,2180.3,2180.1,3.2078]
[1741451971912,0.73408,2180.2,2180.1,3.2078]
[1741451972311,2.86008,2180.2,2180.1,3.2078]
[1741451973208,0.73415,2180.0,2179.9,0.00689243]
[1741451974604,2.126,2180.2,2179.9,0.00689243]
[1741451974803,2.126,2180.2,2179.9,0.74105243]
[1741451974804,2.86009,2180.2,2179.9,0.74105243]
[1741451975005,2.86009,2180.2,2179.9,0.00689243]
[1741451975214,2.86009,2180.2,2180.0,1.0198]
[1741451976812,0.73411,2180.1,2180.0,1.0198]
[1741451977405,2.126,2180.2,2180.0,1.0198]
[1741451977605,2.86011,2180.2,2180.0,1.0198]
[1741451977805,0.73411,2180.1,2180.0,1.0198]
[1741451978213,2.126,2180.2,2180.0,1.0198]
[1741451978514,0.73408,2180.2,2180.0,1.0198]
[1741451980016,2.127,2180.3,2180.0,1.0198]
[1741451980210,0.7341,2180.2,2180.1,3.2078]
[1741451982110,0.7341,2180.2,2179.9,0.00689243]
[1741451982111,0.73415,2180.0,2179.9,0.00689243]
[1741451985105,2.86115,2180.0,2179.9,0.00689243]
[1741451985306,3.88595,2180.0,2179.9,0.00689243]
[1741451985813,4.64359264,2180.0,2179.9,0.00689243]
[1741451986014,4.80888686,2180.0,2179.9,0.00689243]
[1741451986614,3.88595,2180.0,2179.9,0.00689243]
[1741451986817,0.73435,2179.4,2179.3,2.1192]
[1741451987008,0.73435,2179.4,2179.3,1.0421]
[1741451987405,0.73435,2179.4,2179.3,1.41163073]
[1741451988008,0.73435,2179.4,2179.3,1.0421]
[1741451988415,0.73438,2179.3,2179.2,3.2078]
[1741451988623,0.73441,2179.2,2179.1,1.09179243]
[1741451988919,0.73441,2179.2,2179.1,1.47442735]
[1741451989311,0.73441,2179.2,2179.1,0.00689243]
[1741451990222,0.7344,2179.3,2179.1,0.00689243]
[1741451990617,0.7344,2179.3,2179.1,0.39244361]
[1741451990823,2.86128,2179.6,2179.2,3.2078]
[1741451991015,2.86128,2179.6,2179.2,5.23]
[1741451991211,2.127,2179.6,2179.5,3.2078]
[1741451991421,2.127,2179.9,2179.5,3.2078]
[1741451991624,0.73422,2179.8,2179.6,2.0035]
[1741451992822,2.8612,2179.9,2179.6,2.0035]
[1741451993325,0.73421,2179.8,2179.6,2.0035]
[1741451993723,0.73422,2179.8,2179.6,2.0035]
[1741451993923,2.127,2179.9,2179.6,2.0035]
[1741451994125,2.86121,2179.9,2179.6,2.0035]
[1741451995325,2.127,2179.9,2179.8,3.2078]
[1741451996024,2.86118,2179.9,2179.8,3.2078]
[1741451996532,0.73418,2179.9,2179.8,3.2078]
[1741451997040,0.00689,2180.2,2179.8,3.2078]
[1741451997236,0.73416,2180.0,2179.8,3.2078]
[1741451997439,2.13389,2180.2,2179.8,3.2078]
[1741451997641,0.73414,2180.1,2179.8,3.2078]
[1741451997841,0.73413,2180.1,2179.8,3.2078]
[1741451998242,0.73417,2180.0,2179.8,3.2078]
[1741451999446,2.13389,2180.2,2179.8,3.2078]
[1741451999947,0.73418,2180.0,2179.8,3.2078]
[1741452000540,2.13389,2180.2,2179.8,3.2078]
[1741452000740,0.73418,2179.9,2179.8,3.2078]
[1741452001549,2.13389,2180.2,2179.8,3.2078]
[1741452001850,0.73411,2180.1,2179.8,3.2078]
[1741452002147,0.73414,2180.1,2179.8,3.2078]
[1741452002349,0.00689,2180.2,2179.8,3.2078]
[1741452002549,0.73412,2180.1,2179.8,3.94198]
[1741452002749,2.86699,2180.2,2179.8,3.94199]
[1741452003244,2.86699,2180.2,2180.1,3.2078]
[1741452003245,0.00689,2180.2,2180.1,3.2078]
[1741452003445,0.74097,2180.2,2180.1,3.2078]
[1741452003749,0.74097,2180.2,2180.1,4.2898]
[1741452008643,0.73411,2180.1,2180.0,1.0951]
[1741452008847,0.00689,2180.2,2179.8,4.2103]
[1741452009153,0.73418,2179.9,2179.8,4.2103]
[1741452009945,2.126,2180.0,2179.8,4.94451]
[1741452010251,0.74099,2180.2,2179.9,0.73416]
[1741452010439,0.74099,2180.2,2180.0,0.73413]
[1741452010644,0.74099,2180.2,2180.0,1.78633]
[1741452010645,0.00689,2180.2,2180.0,1.78633]
[1741452010845,0.74097,2180.2,2180.0,1.78633]
[1741452011248,0.00689,2180.2,2180.0,1.0522]
[1741452011448,0.74097,2180.2,2180.1,3.2078]
[1741452012244,1.80947,2180.2,2180.1,3.2078]
[1741452013146,1.07539,2180.2,2179.8,4.2103]
[1741452013353,0.73418,2179.9,2179.8,4.2103]
[1741452014150,0.73428,2179.6,2179.5,3.2078]
[1741452014350,0.73436,2179.4,2179.2,1.0646]
[1741452015253,0.73438,2179.3,2179.2,1.0646]
[1741452015554,2.88442358,2179.5,2179.1,0.00689243]
[1741452015759,0.7344,2179.3,2179.1,0.00689243]
[1741452015950,0.73441,2179.2,2179.1,0.00689243]
[1741452017553,1.75831,2179.2,2179.1,0.00689243]
[1741452018058,0.73455,2178.8,2178.7,1.0646]
[1741452018351,2.126,2178.9,2178.5,3.2078]
[1741452018654,0.7346,2178.7,2178.5,4.2881]
[1741452019545,0.74146243,2178.8,2178.5,4.2881]
[1741452020052,0.73459,2178.7,2178.5,4.2881]
[1741452020260,0.74145243,2178.8,2178.5,4.2881]
[1741452020451,0.00689243,2178.8,2178.6,0.7346]
[1741452020651,0.00689243,2178.8,2178.5,5.02273]
[1741452021354,0.74145243,2178.8,2178.5,4.2881]
[1741452021960,0.00689243,2178.8,2178.5,5.02274]
[1741452022152,0.00689243,2178.8,2178.6,0.7346]
[1741452022456,0.00689243,2178.8,2178.5,4.2881]
[1741452023255,0.74144243,2178.8,2178.5,4.2881]
[1741452024255,0.00689243,2178.8,2178.5,4.2881]
[1741452024652,0.74145243,2178.8,2178.5,4.2881]
[1741452025260,0.73465,2178.5,2178.4,1.04779243]
[1741452025457,0.00689243,2178.8,2178.4,1.04779243]
[1741452025650,0.00689243,2178.8,2178.5,1.0114]
[1741452025961,0.00689243,2178.8,2178.5,2.0375]
[1741452026657,0.00689243,2178.8,2178.6,0.73461]
[1741452026857,0.00689243,2178.8,2178.5,5.2453]
[1741452026858,2.126,2179.2,2178.5,5.2453]
[1741452027056,1.97796449,2179.2,2178.8,3.94232]
[1741452027264,1.97796449,2179.2,2178.9,2.0926]
[1741452027467,1.97796449,2179.2,2178.9,2.82708]
[1741452027959,1.97796449,2179.2,2178.9,2.8271]
[1741452028163,1.97796449,2179.2,2179.0,1.014]
[1741452028463,0.00689243,2179.3,2179.0,1.014]
[1741452028662,0.74128243,2179.3,2179.0,1.014]
[1741452028864,0.73443,2179.2,2178.9,2.0926]
[1741452029359,2.86729243,2179.3,2178.9,2.82711]
[1741452029564,2.86729243,2179.3,2178.9,2.0926]
[1741452029764,0.73442,2179.2,2178.9,2.0926]
[1741452030264,0.73448,2179.1,2178.9,2.0926]
[1741452030457,0.73447,2179.1,2178.9,2.0926]
[1741452031266,2.86036,2179.4,2179.0,0.73447]
[1741452031467,2.126,2179.4,2179.1,3.94224]
[1741452031667,2.86035,2179.4,2179.1,3.2078]
[1741452032367,2.126,2179.4,2179.1,3.2078]
[1741452032567,0.73443,2179.2,2178.9,2.0926]
[1741452033262,2.126,2179.4,2178.9,2.0926]
[1741452033664,0.73443,2179.2,2178.9,2.0926]
[1741452034559,0.7344,2179.3,2178.9,2.8271]
[1741452034759,2.126,2179.4,2179.1,3.2078]
[1741452034958,3.2078,2179.6,2179.1,3.2078]
[1741452035162,2.126,2179.6,2179.3,0.73437]
[1741452035363,3.162,2179.8,2179.5,3.2078]
[1741452035562,2.126,2179.9,2179.5,3.2078]
[1741452035762,5.2207,2180.0,2179.6,1.83087]
[1741452035763,3.94196,2180.0,2179.6,1.83087]
[1741452035958,2.126,2179.9,2179.6,1.83087]
[1741452036161,2.126,2179.9,2179.6,1.10349243]
[1741452036365,2.126,2179.9,2179.6,1.83777243]
[1741452036867,2.126,2179.9,2179.6,1.10349243]
[1741452037467,2.126,2179.9,2179.6,1.83774243]
[1741452037970,2.126,2179.9,2179.6,1.10349243]
[1741452038170,0.73425,2179.7,2179.6,1.10349243]
[1741452038371,0.73422,2179.8,2179.6,1.10349243]
[1741452038869,2.126,2179.9,2179.6,1.10349243]
[1741452039167,2.126,2179.9,2179.6,1.83775243]
[1741452039569,2.126,2179.9,2179.6,1.10349243]
[1741452039768,0.73409,2180.2,2179.8,3.94201]
[1741452039959,5.3141,2180.4,2179.8,3.94201]
[1741452039960,2.126,2180.3,2179.9,1.0784]
[1741452040164,0.73414,2180.1,2180.0,1.027]
[1741452041975,2.86008,2180.2,2180.0,1.027]
[1741452042569,0.73408,2180.2,2180.0,1.40445248]
[1741452043377,0.73411,2180.1,2180.0,1.40445248]
[1741452043569,0.7341,2180.2,2180.0,1.40445248]
[1741452043771,0.73411,2180.1,2180.0,1.40445248]
[1741452044071,0.73411,2180.1,2180.0,1.027]
[1741452046775,0.73409,2180.2,2180.0,1.027]
[1741452047178,2.86006,2180.3,2180.0,2.13258595]
[1741452047479,2.86006,2180.3,2180.0,1.39846595]
[1741452047670,2.126,2180.3,2180.0,1.027]
[1741452047870,2.126,2180.3,2179.9,1.0784]
[1741452048073,0.73415,2180.0,2179.9,1.0784]
[1741452048776,1.0736,2180.1,2179.8,3.2078]
[1741452048975,0.73418,2179.9,2179.8,3.2078]
[1741452050481,0.73424,2179.8,2179.6,1.10379243]
[1741452050672,2.125,2179.9,2179.6,1.10379243]
[1741452050976,0.73422,2179.8,2179.6,1.10379243]
[1741452051367,0.73425,2179.7,2179.6,1.10379243]
[1741452051572,0.73425,2179.7,2179.6,0.00689243]
[1741452062073,4.2625,2179.8,2179.1,3.2078]
[1741452062374,0.73441,2179.2,2179.1,3.2078]
[1741452062580,2.125,2179.3,2179.1,3.94224]
[1741452062776,2.125,2179.3,2179.2,1.007]
[1741452062971,2.125,2179.3,2179.2,1.74141]
[1741452063182,2.125,2179.3,2179.2,1.007]
[1741452063384,2.85938,2179.3,2179.2,1.007]
[1741452063585,0.73441,2179.2,2179.1,3.2078]
[1741452064278,0.73445,2179.1,2179.0,0.00689243]
[1741452066477,0.73458,2178.7,2178.6,3.59082412]
[1741452066783,0.73473,2178.3,2178.1,2.1485]
[1741452066974,0.73475,2178.2,2178.1,2.1485]
[1741452067679,0.73475,2178.2,2178.1,1.0638]
[1741452067881,0.73479,2178.1,2178.0,3.2078]
[1741452068484,0.73479,2178.1,2177.9,0.00689243]
[1741452068485,0.73482,2178.0,2177.9,0.00689243]
[1741452069384,0.73495,2177.6,2177.5,3.2078]
[1741452070181,2.125,2177.7,2177.1,0.38419364]
[1741452070380,0.73504,2177.4,2177.0,1.069]
[1741452070678,2.125,2177.3,2177.2,0.00689243]
[1741452071081,2.86006,2177.3,2177.2,0.00689243]
[1741452074185,3.94284,2177.4,2177.2,0.00689243]
[1741452074392,2.126,2177.3,2177.2,0.00689243]
[1741452074782,2.86099,2177.5,2177.2,3.21469243]
[1741452075083,0.73503,2177.4,2177.2,3.21469243]
[1741452075281,2.126,2177.5,2177.2,3.21469243]
[1741452075477,2.126,2177.5,2177.2,0.00689243]
[1741452075795,0.73506,2177.3,2177.2,0.00689243]
[1741452075982,0.73504,2177.4,2177.2,0.00689243]
[1741452076483,2.125,2177.5,2177.2,3.94976243]
[1741452076682,2.125,2177.5,2177.2,3.21469243]
[1741452076882,2.125,2177.5,2177.2,3.94975243]
[1741452077389,2.125,2177.5,2177.2,3.21469243]
[1741452077586,2.125,2177.5,2177.3,0.73503]
[1741452077791,2.125,2177.5,2177.3,0.73504]
[1741452078190,2.125,2177.5,2177.2,3.94976243]
[1741452078486,2.125,2177.5,2177.2,3.21469243]
[1741452078787,3.2078,2178.0,2177.2,3.21469243]
[1741452078982,2.126,2177.7,2177.3,3.2078]
[1741452079187,2.126,2177.7,2177.4,0.73501]
[1741452079393,2.126,2177.7,2177.5,1.0714]
[1741452079694,2.126,2177.8,2177.5,1.80637]
[1741452079892,2.126,2177.9,2177.6,0.999]
[1741452080201,2.126,2178.0,2177.6,4.2068]
[1741452080490,2.126,2178.0,2177.9,3.94265]
[1741452080692,2.126,2178.3,2177.9,3.2078]
[1741452080989,2.126,2178.3,2178.2,3.2078]
[1741452081185,2.126,2178.3,2178.2,3.94255]
[1741452081587,2.126,2178.3,2178.2,3.2078]
[1741452083181,0.00689243,2178.4,2178.2,3.2078]
[1741452083382,3.2078,2178.8,2178.2,3.2078]
[1741452083592,0.73465,2178.6,2178.3,1.0846]
[1741452084593,0.74149243,2178.7,2178.3,1.0846]
[1741452084793,2.86749243,2178.7,2178.3,1.0846]
[1741452084988,0.73472,2178.3,2178.2,3.21469243]
[1741452085295,0.73466,2178.5,2178.2,3.21469243]
[1741452085687,3.21619243,2178.7,2178.2,3.21469243]
[1741452085889,0.73468,2178.5,2178.2,3.21469243]
[1741452086193,3.21619243,2178.7,2178.2,3.21469243]
[1741452086398,0.73472,2178.3,2178.2,3.21469243]
[1741452086707,3.21619243,2178.7,2178.2,3.21469243]
[1741452086708,0.73468,2178.5,2178.2,3.21469243]
[1741452087197,2.13289243,2178.7,2178.2,3.21469243]
[1741452087390,2.125,2178.7,2178.5,0.73464]
[1741452087696,3.2078,2178.8,2178.6,1.068]
[1741452088295,2.125,2178.9,2178.6,1.068]
[1741452088497,2.13189243,2178.9,2178.6,1.068]
[1741452088799,0.00689243,2178.9,2178.8,3.2078]
[1741452089100,0.74141243,2178.9,2178.8,3.2078]
[1741452089991,2.13189243,2178.9,2178.8,3.2078]
[1741452091199,2.13189243,2178.9,2178.8,3.94235]
[1741452092200,2.125,2179.2,2178.8,3.2078]
[1741452092389,2.125,2179.2,2179.1,0.73445]
[1741452092594,3.2078,2179.5,2178.9,1.0651]
[1741452092794,2.8593,2179.6,2179.1,3.2078]
[1741452092999,2.8593,2179.6,2179.2,1.82391]
[1741452093295,2.125,2179.6,2179.2,1.0895]
[1741452093803,2.125,2179.6,2179.1,3.2078]
[1741452093997,0.73437,2179.4,2179.1,3.2078]
[1741452094197,2.8593,2179.6,2179.1,3.2078]
[1741452094507,2.125,2179.6,2179.1,3.2078]
[1741452094698,2.125,2179.6,2179.3,0.73436]
[1741452095299,2.85929,2179.6,2179.2,0.7344]
[1741452095502,0.73432,2179.5,2179.2,0.7344]
[1741452095895,2.8593,2179.6,2179.2,0.7344]
[1741452096097,0.73434,2179.5,2179.1,3.94224]
[1741452096400,2.125,2179.6,2179.1,3.2078]
[1741452096609,2.8593,2179.6,2179.2,0.7344]
[1741452097400,2.125,2179.6,2179.3,0.73438]
[1741452097600,2.85928,2179.6,2179.3,0.73438]
[1741452098203,2.85928,2179.6,2179.4,3.2078]
[1741452099202,2.125,2179.6,2179.4,3.2078]
[1741452099403,2.85929,2179.6,2179.4,3.2078]
[1741452100205,0.73431,2179.5,2179.4,3.2078]
[1741452100405,0.7343,2179.6,2179.4,3.2078]
[1741452100607,0.73431,2179.6,2179.4,3.2078]
[1741452100908,0.73431,2179.5,2179.4,3.2078]
[1741452101302,0.73438,2179.3,2179.2,0.00689243]
[1741452102703,2.85838,2179.3,2179.2,0.00689243]
[1741452105007,0.73455,2178.8,2178.7,2.985]
[1741452105209,0.73455,2178.8,2178.6,3.2078]
[1741452106116,0.00689243,2178.9,2178.6,5.03282]
[1741452106419,0.00689243,2178.9,2178.6,5.0328]
[1741452106420,0.74143243,2178.9,2178.6,5.0328]
[1741452107021,0.74143243,2178.9,2178.6,4.2982]
[1741452108109,0.00689243,2178.9,2178.6,4.2982]
[1741452108315,0.73455,2178.8,2178.6,4.2982]
[1741452108516,0.00689243,2178.9,2178.6,4.2982]
[1741452108722,0.73455,2178.8,2178.6,4.2982]
[1741452110022,0.73458,2178.7,2178.6,4.2982]
[1741452110414,0.73457,2178.8,2178.6,4.2982]
[1741452113025,2.13089243,2178.9,2178.6,4.2982]
[1741452113222,0.73458,2178.7,2178.6,4.2982]
[1741452113422,2.13089243,2178.9,2178.6,4.2982]
[1741452113622,0.73457,2178.8,2178.6,4.2982]
[1741452114228,0.73457,2178.8,2178.6,5.03282]
[1741452114429,2.86541243,2178.9,2178.6,4.2982]
[1741452114729,2.13089243,2178.9,2178.6,5.03279]
[1741452114929,2.86541243,2178.9,2178.6,5.03279]
[1741452115619,0.00689243,2178.9,2178.7,0.73458]
[1741452115822,0.00689243,2178.9,2178.8,1.74095]
[1741452116719,4.2978,2179.4,2179.0,0.73447]
[1741452116925,2.85736,2179.4,2179.1,1.79234]
[1741452117126,2.85736,2179.4,2179.2,1.0064]
[1741452117527,0.73438,2179.3,2179.2,1.0064]
[1741452118027,2.85736,2179.4,2179.2,1.0064]
[1741452118623,0.73438,2179.3,2179.2,1.0064]
[1741452119527,2.123,2179.4,2179.2,1.0064]
[1741452119724,2.85734,2179.5,2179.2,1.0064]
[1741452120220,2.123,2179.5,2179.2,1.0064]
[1741452121230,2.123,2179.5,2179.1,1.0579]
[1741452121529,0.73441,2179.2,2179.1,1.0579]
[1741452122430,0.73439,2179.3,2179.1,1.0579]
[1741452122630,2.123,2179.5,2179.1,1.0579]
[1741452122830,2.123,2179.5,2179.2,1.0613]
[1741452123135,2.85734,2179.5,2179.2,1.0613]
[1741452123519,2.85734,2179.5,2179.2,1.7957]
[1741452123726,2.85734,2179.5,2179.2,1.0613]
[1741452124021,0.73433,2179.5,2179.2,4.2691]
[1741452124216,2.123,2179.7,2179.2,5.2831]
[1741452124427,2.85727,2179.7,2179.3,0.73438]
[1741452124630,2.123,2179.7,2179.3,0.73438]
[1741452124828,0.73428,2179.6,2179.2,5.2831]
[1741452125131,2.123,2179.7,2179.2,4.2691]
[1741452125320,0.73431,2179.6,2179.2,5.00351]
[1741452125520,1.6846155,2179.8,2179.2,5.00351]
[1741452125521,3.78234026,2179.8,2179.4,0.73433]
[1741452125732,3.78234026,2179.8,2179.5,3.2078]
[1741452126030,0.73425,2179.7,2179.6,1.067]
[1741452126325,2.85722,2179.8,2179.6,1.067]
[1741452126629,2.85722,2179.8,2179.6,2.0815]
[1741452126824,2.123,2179.8,2179.6,2.0815]
[1741452127030,0.73425,2179.7,2179.6,2.0815]
[1741452127227,0.73419,2179.9,2179.6,2.0815]
[1741452127431,2.85717,2180.0,2179.6,2.81577]
[1741452127631,2.85717,2180.0,2179.6,3.92487]
[1741452127833,0.73422,2179.8,2179.6,2.0815]
[1741452128024,2.123,2180.1,2179.6,2.0815]
[1741452128232,0.73416,2180.0,2179.6,2.81577]
[1741452128425,0.73416,2180.0,2179.6,3.93176243]
[1741452128629,2.0593,2180.5,2179.8,3.2078]
[1741452128830,0.73405,2180.3,2179.9,0.73415]
[1741452129430,1.6584598,2180.4,2180.0,1.82082]
[1741452129630,0.73402,2180.4,2180.1,1.1079]
[1741452129828,1.1055,2180.7,2180.1,4.3157]
[1741452130130,2.8559,2180.8,2180.1,5.3431]
[1741452130335,0.73392,2180.7,2180.3,0.73403]
[1741452130631,2.122,2180.8,2180.3,1.11417935]
[1741452130933,2.122,2180.9,2180.3,0.38014935]
[1741452131133,2.122,2180.9,2180.4,3.9418]
[1741452131328,2.122,2180.9,2180.5,1.0147]
[1741452131329,0.73389,2180.8,2180.5,1.0147]
[1741452131537,2.85586,2180.9,2180.5,1.0147]
[1741452131733,2.85586,2180.9,2180.6,1.0189]
[1741452131935,6.06364,2181.0,2180.7,3.2078]
[1741452132634,2.122,2181.0,2180.7,3.2078]
[1741452132828,2.85582,2181.0,2180.7,3.2078]
[1741452133136,0.73386,2180.9,2180.7,3.2078]
[1741452134029,2.85583,2181.0,2180.7,3.2078]
[1741452134227,0.73386,2180.9,2180.7,3.2078]
[1741452134431,2.122,2181.0,2180.7,3.2078]
[1741452134629,0.73385,2180.9,2180.7,3.2078]
[1741452135026,2.122,2181.0,2180.7,3.2078]
[1741452135223,0.73391,2180.7,2180.6,1.0189]
[1741452135837,0.73398,2180.5,2180.4,3.2078]
[1741452138931,2.122,2180.6,2180.3,1.0449]
[1741452139139,0.73401,2180.4,2180.3,1.0449]
[1741452139733,3.2078,2180.4,2180.0,3.2078]
[1741452139941,3.2078,2180.4,2179.7,1.81413]
[1741452139942,0.73418,2179.9,2179.8,2.132]
[1741452140239,0.73421,2179.8,2179.6,0.00689243]
[1741452140440,0.73425,2179.7,2179.6,0.00689243]
[1741452149140,0.73445,2179.1,2179.0,1.41011819]
[1741452149345,0.73445,2179.1,2179.0,1.0357]
[1741452149544,2.121,2179.4,2178.7,3.2078]
[1741452149742,0.73455,2178.8,2178.7,3.2078]
[1741452150047,0.73458,2178.7,2178.6,2.0561]
[1741452150749,2.12789243,2178.9,2178.6,2.0561]
[1741452151253,0.73458,2178.7,2178.6,2.0561]
[1741452151550,0.73465,2178.5,2178.4,3.21469243]
[1741452152253,2.85665,2178.5,2178.4,0.00689243]
[1741452152850,2.122,2178.5,2178.4,0.00689243]
[1741452153447,2.85665,2178.5,2178.4,0.00689243]
[1741452153653,2.122,2178.5,2178.4,0.00689243]
[1741452155345,0.7346,2178.7,2178.4,3.21469243]
[1741452155652,0.73463,2178.6,2178.4,3.21469243]
[1741452157649,0.73465,2178.5,2178.4,3.21469243]
[1741452158256,0.73463,2178.6,2178.4,3.21469243]
[1741452158655,2.122,2178.8,2178.4,3.21469243]
[1741452158854,2.85657,2178.8,2178.4,3.21469243]
[1741452159355,0.73459,2178.7,2178.4,3.21469243]
[1741452160361,2.122,2178.8,2178.4,3.94935243]
[1741452160556,2.122,2178.8,2178.4,3.21469243]
[1741452160957,0.73465,2178.5,2178.4,0.00689243]
[1741452161356,0.73464,2178.6,2178.4,0.00689243]
[1741452161860,0.7346,2178.7,2178.4,0.74157243]
[1741452162652,2.85658,2178.8,2178.4,0.74156243]
[1741452162859,2.85657,2178.8,2178.4,0.74156243]
[1741452163356,0.7346,2178.7,2178.4,0.00689243]
[1741452164159,2.85656,2178.8,2178.4,0.74156243]
[1741452164360,0.7346,2178.7,2178.4,0.00689243]
[1741452164563,2.122,2178.8,2178.4,0.74156243]
[1741452164564,2.85657,2178.8,2178.4,0.74156243]
[1741452164859,0.73457,2178.8,2178.4,0.00689243]
[1741452165054,2.122,2178.8,2178.6,0.73462]
[1741452165254,0.00689243,2178.9,2178.7,2.80506]
[1741452165465,0.00689243,2178.9,2178.7,2.0705]
[1741452165653,2.86342243,2178.9,2178.7,2.0705]
[1741452166162,2.12889243,2178.9,2178.7,2.80508]
[1741452166551,0.00689243,2178.9,2178.8,0.73455]
[1741452167160,0.00689243,2178.9,2178.7,2.80506]
[1741452167362,0.00689243,2178.9,2178.8,0.73455]
[1741452168455,0.00689243,2178.9,2178.7,2.0705]
[1741452169064,0.00689243,2178.9,2178.7,2.80507]
[1741452169663,0.00689243,2178.9,2178.8,0.73455]
[1741452169864,0.00689243,2178.9,2178.7,2.0705]
[1741452169865,0.74143243,2178.9,2178.7,2.0705]
[1741452170059,0.73455,2178.8,2178.7,2.0705]
[1741452170463,0.73455,2178.8,2178.7,1.0178]
[1741452170860,0.00689243,2178.9,2178.7,1.0178]
[1741452171367,0.74143243,2178.9,2178.7,1.0178]
[1741452171761,0.00689243,2178.9,2178.5,3.2078]
[1741452172067,0.00689243,2178.9,2178.4,0.00689243]
[1741452172068,0.73465,2178.5,2178.4,0.00689243]
[1741452172264,3.94245,2178.5,2178.4,0.00689243]
[1741452172460,3.2078,2178.5,2178.0,1.1096]
[1741452172662,2.2052,2178.4,2178.0,1.1096]
[1741452172966,0.73476,2178.2,2178.0,1.1096]
[1741452173161,0.73479,2178.1,2178.0,1.1096]
[1741452173567,2.2052,2178.4,2178.0,1.1096]
[1741452173568,0.73476,2178.2,2178.0,1.1096]
[1741452174869,2.85576,2178.2,2178.0,1.1096]
[1741452175066,0.73479,2178.1,2178.0,1.1096]
[1741452175367,2.121,2178.2,2178.0,1.1096]
[1741452175578,2.85577,2178.2,2178.0,1.1096]
[1741452176463,0.73479,2178.1,2178.0,1.1096]
[1741452176665,2.85577,2178.2,2178.0,1.1096]
[1741452176864,0.73479,2178.1,2178.0,1.1096]
[1741452177473,0.73482,2178.0,2177.8,0.37741219]
[1741452178363,0.7348,2178.1,2177.8,1.11230219]
[1741452178672,0.7348,2178.1,2177.9,1.0465]
[1741452178868,5.3288,2178.2,2177.9,1.0465]
[1741452179073,5.3288,2178.2,2177.8,0.00689243]
[1741452179377,0.73502,2177.4,2177.3,1.0465]
[1741452179972,5.3288,2177.6,2177.0,0.37716686]
[1741452180273,0.73511,2177.2,2176.9,4.98948]
[1741452180473,0.73507,2177.3,2177.1,0.00689243]
[1741452180680,0.74190243,2177.5,2177.1,0.74198243]